[Event "*** Titled Tuesday Blitz"]
[Site "Chess.com"]
[Date "2018.11.06"]
[Round "2"]
[White "Bryakin_Mikhail"]
[Black "GMHess"]
[Result "1/2-1/2"]
[WhiteElo "2685"]
[BlackElo "2674"]
[TimeControl "180+2"]
[EndTime "13:26:22 PST"]
[Termination "Game drawn - insufficient material"]

1. d4 {[%clk 0:03:00.8]} 1... d6 {[%clk 0:02:53.7]} 2. Nf3 {[%clk 0:03:01.1]}
2... Nf6 {[%clk 0:02:54.5]} 3. c4 {[%clk 0:03:01.5]} 3... g6 {[%clk 0:02:55.5]}
4. Nc3 {[%clk 0:03:02.9]} 4... Bf5 {[%clk 0:02:56.3]} 5. Ng5 {[%clk 0:02:58]}
5... h6 {[%clk 0:02:45.2]} 6. e4 {[%clk 0:02:56.4]} 6... Bg4 {[%clk 0:02:46.4]}
7. Nf3 {[%clk 0:02:42.8]} 7... Nc6 {[%clk 0:02:45.3]} 8. Be2 {[%clk 0:02:42.1]}
8... e5 {[%clk 0:02:39.8]} 9. d5 {[%clk 0:02:38.6]} 9... Bxf3 {[%clk 0:02:40.6]}
10. Bxf3 {[%clk 0:02:32.7]} 10... Nd4 {[%clk 0:02:42.1]} 11. Be3 {[%clk
0:02:33.9]} 11... Nxf3+ {[%clk 0:02:10]} 12. Qxf3 {[%clk 0:02:30.6]} 12... Bg7
{[%clk 0:01:54.5]} 13. O-O {[%clk 0:02:31.5]} 13... O-O {[%clk 0:01:55.6]} 14.
c5 {[%clk 0:02:24.8]} 14... Nh5 {[%clk 0:01:37.4]} 15. Rfd1 {[%clk 0:02:19.6]}
15... Kh7 {[%clk 0:01:14.9]} 16. Rac1 {[%clk 0:02:17.6]} 16... f5 {[%clk
0:01:12.9]} 17. exf5 {[%clk 0:02:12.3]} 17... Rxf5 {[%clk 0:01:14.8]} 18. Qg4
{[%clk 0:02:07.6]} 18... Nf4 {[%clk 0:01:04.3]} 19. Bxf4 {[%clk 0:01:18.4]}
19... Rxf4 {[%clk 0:00:32]} 20. Qe2 {[%clk 0:01:15.1]} 20... Qd7 {[%clk
0:00:10.4]} 21. Ne4 {[%clk 0:01:12.4]} 21... Raf8 {[%clk 0:00:09.8]} 22. c6
{[%clk 0:01:00.6]} 22... Qc8 {[%clk 0:00:07.4]} 23. cxb7 {[%clk 0:00:58.7]}
23... Qxb7 {[%clk 0:00:09.3]} 24. b3 {[%clk 0:00:58.1]} 24... R8f7 {[%clk
0:00:06.7]} 25. Rc6 {[%clk 0:00:56.3]} 25... Qb4 {[%clk 0:00:05.7]} 26. f3
{[%clk 0:00:55.1]} 26... g5 {[%clk 0:00:07.1]} 27. Qc4 {[%clk 0:00:51]} 27...
Qxc4 {[%clk 0:00:05.2]} 28. Rxc4 {[%clk 0:00:51.3]} 28... g4 {[%clk 0:00:06.6]}
29. fxg4 {[%clk 0:00:51.2]} 29... Kg6 {[%clk 0:00:07]} 30. h3 {[%clk 0:00:40.9]}
30... Bf8 {[%clk 0:00:08]} 31. Rdc1 {[%clk 0:00:26.5]} 31... Be7 {[%clk
0:00:08.4]} 32. Ng3 {[%clk 0:00:27.3]} 32... Bg5 {[%clk 0:00:07.3]} 33. Nf5
{[%clk 0:00:19]} 33... Rxc4 {[%clk 0:00:03.9]} 34. Rxc4 {[%clk 0:00:20.9]} 34...
h5 {[%clk 0:00:05.2]} 35. a4 {[%clk 0:00:17.4]} 35... hxg4 {[%clk 0:00:06.5]}
36. hxg4 {[%clk 0:00:19.3]} 36... Bf4 {[%clk 0:00:07.9]} 37. g3 {[%clk
0:00:19.6]} 37... Bd2 {[%clk 0:00:08]} 38. Kg2 {[%clk 0:00:20.5]} 38... Kg5
{[%clk 0:00:08.7]} 39. Kf3 {[%clk 0:00:19.1]} 39... a5 {[%clk 0:00:08.8]} 40.
Rc2 {[%clk 0:00:18.7]} 40... Bb4 {[%clk 0:00:09.5]} 41. Rh2 {[%clk 0:00:18.8]}
41... e4+ {[%clk 0:00:10.9]} 42. Kxe4 {[%clk 0:00:19.3]} 42... Rf8 {[%clk
0:00:06.3]} 43. Rh4 {[%clk 0:00:14.6]} 43... Bc5 {[%clk 0:00:06.6]} 44. Kf3
{[%clk 0:00:14.1]} 44... Rb8 {[%clk 0:00:07.6]} 45. Rh5+ {[%clk 0:00:14.6]}
45... Kg6 {[%clk 0:00:09]} 46. Rh6+ {[%clk 0:00:11.6]} 46... Kg5 {[%clk
0:00:10.5]} 47. Rh5+ {[%clk 0:00:12.9]} 47... Kf6 {[%clk 0:00:11.5]} 48. Rh6+
{[%clk 0:00:11.8]} 48... Ke5 {[%clk 0:00:13]} 49. Rh7 {[%clk 0:00:12.3]} 49...
Rxb3+ {[%clk 0:00:13.9]} 50. Kg2 {[%clk 0:00:13.7]} 50... Kxd5 {[%clk
0:00:14.7]} 51. Rxc7 {[%clk 0:00:14.7]} 51... Rb4 {[%clk 0:00:15.2]} 52. g5
{[%clk 0:00:14.2]} 52... Ke5 {[%clk 0:00:14.5]} 53. Ne7 {[%clk 0:00:12.9]} 53...
Rxa4 {[%clk 0:00:14.5]} 54. g6 {[%clk 0:00:13.6]} 54... Rg4 {[%clk 0:00:15.4]}
55. Kh3 {[%clk 0:00:09.9]} 55... Rg5 {[%clk 0:00:16]} 56. Kh4 {[%clk 0:00:10.9]}
56... Kf6 {[%clk 0:00:16.5]} 57. Ng8+ {[%clk 0:00:03.7]} 57... Kxg6 {[%clk
0:00:17.2]} 58. Ne7+ {[%clk 0:00:04.8]} 58... Kf6 {[%clk 0:00:12.7]} 59. Nc6
{[%clk 0:00:04.2]} 59... Bf2 {[%clk 0:00:11]} 60. Rc8 {[%clk 0:00:02.9]} 60...
Bxg3+ {[%clk 0:00:11.3]} 61. Kh3 {[%clk 0:00:04.3]} 61... Be1 {[%clk 0:00:09.5]}
62. Ra8 {[%clk 0:00:05.4]} 62... Rg3+ {[%clk 0:00:09.9]} 63. Kh2 {[%clk
0:00:06.5]} 63... Ra3 {[%clk 0:00:11.1]} 64. Nd4 {[%clk 0:00:07.7]} 64... Bg3+
{[%clk 0:00:10.6]} 65. Kg2 {[%clk 0:00:08.6]} 65... Be5 {[%clk 0:00:12.1]} 66.
Nc6 {[%clk 0:00:09.9]} 66... a4 {[%clk 0:00:12.1]} 67. Kf2 {[%clk 0:00:11.3]}
67... Ra1 {[%clk 0:00:12.5]} 68. Ke2 {[%clk 0:00:12.2]} 68... a3 {[%clk
0:00:14]} 69. Nb4 {[%clk 0:00:10.4]} 69... Rb1 {[%clk 0:00:10.4]} 70. Nd3 {[%clk
0:00:09.7]} 70... Rb3 {[%clk 0:00:08.4]} 71. Kd2 {[%clk 0:00:09.4]} 71... Ke6
{[%clk 0:00:09.7]} 72. Kc2 {[%clk 0:00:10]} 72... Rc3+ {[%clk 0:00:10.8]} 73.
Kd2 {[%clk 0:00:11.5]} 73... Rb3 {[%clk 0:00:07.4]} 74. Kc2 {[%clk 0:00:12.5]}
74... Rc3+ {[%clk 0:00:08.2]} 75. Kd2 {[%clk 0:00:13.6]} 75... Rc4 {[%clk
0:00:07.7]} 76. Nxe5 {[%clk 0:00:13.1]} 76... dxe5 {[%clk 0:00:07.8]} 77. Rxa3
{[%clk 0:00:14.4]} 77... Kf5 {[%clk 0:00:09.2]} 78. Ke3 {[%clk 0:00:14.3]} 78...
Rh4 {[%clk 0:00:10]} 79. Ke2 {[%clk 0:00:13.2]} 79... Rh2+ {[%clk 0:00:11.2]}
80. Ke1 {[%clk 0:00:14.2]} 80... Kf4 {[%clk 0:00:12.7]} 81. Rb3 {[%clk
0:00:15.3]} 81... e4 {[%clk 0:00:14]} 82. Ra3 {[%clk 0:00:16.3]} 82... Rh1+
{[%clk 0:00:14]} 83. Ke2 {[%clk 0:00:16]} 83... Rh2+ {[%clk 0:00:15.9]} 84. Ke1
{[%clk 0:00:17.1]} 84... Rb2 {[%clk 0:00:16.3]} 85. Kf1 {[%clk 0:00:17.2]} 85...
Rd2 {[%clk 0:00:14.8]} 86. Ke1 {[%clk 0:00:17.5]} 86... Rh2 {[%clk 0:00:13.7]}
87. Kf1 {[%clk 0:00:18.5]} 87... Rc2 {[%clk 0:00:14.5]} 88. Ke1 {[%clk
0:00:19.2]} 88... Ke5 {[%clk 0:00:16]} 89. Kd1 {[%clk 0:00:19.7]} 89... Rg2
{[%clk 0:00:16.4]} 90. Ke1 {[%clk 0:00:20.7]} 90... Kd4 {[%clk 0:00:17.4]} 91.
Kf1 {[%clk 0:00:21.6]} 91... Rd2 {[%clk 0:00:18.4]} 92. Ke1 {[%clk 0:00:22.4]}
92... Rd3 {[%clk 0:00:19.9]} 93. Ra2 {[%clk 0:00:17.4]} 93... Ke3 {[%clk
0:00:17.7]} 94. Re2+ {[%clk 0:00:18]} 94... Kf3 {[%clk 0:00:19]} 95. Rf2+ {[%clk
0:00:18.8]} 95... Kg3 {[%clk 0:00:20.4]} 96. Rf8 {[%clk 0:00:19.2]} 96... Rf3
{[%clk 0:00:16.7]} 97. Rg8+ {[%clk 0:00:18]} 97... Kf4 {[%clk 0:00:18.2]} 98.
Ke2 {[%clk 0:00:19.3]} 98... Re3+ {[%clk 0:00:18.2]} 99. Kf2 {[%clk 0:00:20.3]}
99... Rf3+ {[%clk 0:00:19.2]} 100. Ke2 {[%clk 0:00:21.5]} 100... Ra3 {[%clk
0:00:20.4]} 101. Rf8+ {[%clk 0:00:21.9]} 101... Ke5 {[%clk 0:00:22]} 102. Re8+
{[%clk 0:00:23]} 102... Kd4 {[%clk 0:00:23.4]} 103. Rd8+ {[%clk 0:00:24.2]}
103... Kc5 {[%clk 0:00:24]} 104. Rc8+ {[%clk 0:00:24.9]} 104... Kd6 {[%clk
0:00:25.1]} 105. Rd8+ {[%clk 0:00:25.9]} 105... Ke7 {[%clk 0:00:25.7]} 106. Rh8
{[%clk 0:00:26.7]} 106... Kf6 {[%clk 0:00:26.6]} 107. Rh5 {[%clk 0:00:27.9]}
107... Rf3 {[%clk 0:00:26.7]} 108. Rb5 {[%clk 0:00:28.5]} 108... Rf5 {[%clk
0:00:28]} 109. Rxf5+ {[%clk 0:00:27.4]} 109... Kxf5 {[%clk 0:00:29.9]} 110. Ke3
{[%clk 0:00:28.7]} 110... Ke5 {[%clk 0:00:30.9]} 111. Ke2 {[%clk 0:00:30.1]}
111... Kf4 {[%clk 0:00:32.8]} 112. Kf2 {[%clk 0:00:31.1]} 112... e3+ {[%clk
0:00:33.6]} 113. Ke2 {[%clk 0:00:32.1]} 113... Ke4 {[%clk 0:00:35.5]} 114. Ke1
{[%clk 0:00:33.2]} 114... Kd4 {[%clk 0:00:36.8]} 115. Ke2 {[%clk 0:00:34.2]}
115... Ke4 {[%clk 0:00:38.3]} 116. Ke1 {[%clk 0:00:35.2]} 116... Kd3 {[%clk
0:00:40.2]} 117. Kd1 {[%clk 0:00:36.1]} 117... Kc3 {[%clk 0:00:41.8]} 118. Ke2
{[%clk 0:00:36.9]} 118... Kd4 {[%clk 0:00:43.5]} 119. Ke1 {[%clk 0:00:38.2]}
119... Ke4 {[%clk 0:00:43.6]} 120. Ke2 {[%clk 0:00:39.2]} 120... Kd4 {[%clk
0:00:45.1]} 121. Ke1 {[%clk 0:00:40]} 121... Kd3 {[%clk 0:00:47]} 122. Kd1
{[%clk 0:00:40.9]} 122... e2+ {[%clk 0:00:48.9]} 123. Ke1 {[%clk 0:00:41.7]}
123... Kc2 {[%clk 0:00:50.8]} 124. Kxe2 {[%clk 0:00:41.2]} 1/2-1/2

[Event "*** Titled Tuesday Blitz"]
[Site "Chess.com"]
[Date "2018.11.06"]
[Round "3"]
[White "TheBigBadChessDad"]
[Black "IvanRadivojevic"]
[Result "1-0"]
[WhiteElo "2289"]
[BlackElo "2406"]
[TimeControl "180+2"]
[EndTime "13:32:37 PST"]
[Termination "TheBigBadChessDad won by resignation"]

1. d4 {[%clk 0:03:01.9]} 1... Nf6 {[%clk 0:03:00]} 2. Nf3 {[%clk 0:03:02]} 2...
d6 {[%clk 0:03:00.4]} 3. Bg5 {[%clk 0:02:56.1]} 3... Bg4 {[%clk 0:03:00.7]} 4.
Bxf6 {[%clk 0:02:54]} 4... gxf6 {[%clk 0:02:58.3]} 5. g3 {[%clk 0:02:52.9]} 5...
Bxf3 {[%clk 0:02:57.6]} 6. exf3 {[%clk 0:02:53.6]} 6... Nd7 {[%clk 0:02:59.2]}
7. d5 {[%clk 0:02:54.4]} 7... c6 {[%clk 0:03:00.7]} 8. c4 {[%clk 0:02:54.1]}
8... c5 {[%clk 0:03:00.4]} 9. Nc3 {[%clk 0:02:53.7]} 9... f5 {[%clk 0:03:01]}
10. Bd3 {[%clk 0:02:51.8]} 10... Ne5 {[%clk 0:03:00.2]} 11. Bc2 {[%clk
0:02:44.7]} 11... Nxc4 {[%clk 0:02:58]} 12. Ba4+ {[%clk 0:02:39.9]} 12... Qd7
{[%clk 0:02:45.9]} 1-0

[Event "*** Titled Tuesday Blitz"]
[Site "Chess.com"]
[Date "2018.11.06"]
[Round "3"]
[White "Vrolijk"]
[Black "Oneofmyturns"]
[Result "1-0"]
[WhiteElo "2650"]
[BlackElo "2498"]
[TimeControl "180+2"]
[EndTime "13:35:01 PST"]
[Termination "Vrolijk won by resignation"]

1. d4 {[%clk 0:03:01.9]} 1... Nf6 {[%clk 0:03:00.9]} 2. c4 {[%clk 0:03:01.8]}
2... g6 {[%clk 0:03:01.8]} 3. Nc3 {[%clk 0:03:01.8]} 3... d5 {[%clk 0:03:03.1]}
4. cxd5 {[%clk 0:03:01.2]} 4... Nxd5 {[%clk 0:03:05]} 5. e4 {[%clk 0:03:01.7]}
5... Nxc3 {[%clk 0:03:05.6]} 6. bxc3 {[%clk 0:03:03.6]} 6... Bg7 {[%clk
0:03:06.9]} 7. Nf3 {[%clk 0:03:03.2]} 7... c5 {[%clk 0:03:07.8]} 8. Be3 {[%clk
0:03:04.5]} 8... Qa5 {[%clk 0:03:06.5]} 9. Qd2 {[%clk 0:03:05]} 9... cxd4 {[%clk
0:03:06.4]} 10. cxd4 {[%clk 0:03:05.2]} 10... Qxd2+ {[%clk 0:03:08.3]} 11. Kxd2
{[%clk 0:03:03.3]} 11... O-O {[%clk 0:02:55.5]} 12. Rb1 {[%clk 0:03:01.9]} 12...
Nc6 {[%clk 0:02:51.4]} 13. Bd3 {[%clk 0:02:59]} 13... Rd8 {[%clk 0:02:52]} 14.
d5 {[%clk 0:03:00.4]} 14... Na5 {[%clk 0:02:49.5]} 15. Ke2 {[%clk 0:02:57.5]}
15... Bd7 {[%clk 0:02:39.3]} 16. Rhc1 {[%clk 0:02:53.5]} 16... e6 {[%clk
0:02:23.9]} 17. d6 {[%clk 0:02:22]} 17... e5 {[%clk 0:02:12.4]} 18. Rc7 {[%clk
0:01:50.3]} 18... f6 {[%clk 0:01:59]} 19. Bd2 {[%clk 0:01:48.3]} 19... b6 {[%clk
0:01:52.7]} 20. Bxa5 {[%clk 0:01:48.5]} 20... bxa5 {[%clk 0:01:54.6]} 21. Rbb7
{[%clk 0:01:49.6]} 1-0

[Event "*** Titled Tuesday Blitz"]
[Site "Chess.com"]
[Date "2018.11.06"]
[Round "3"]
[White "DrVitman"]
[Black "johnathan113"]
[Result "1-0"]
[WhiteElo "2628"]
[BlackElo "2509"]
[TimeControl "180+2"]
[EndTime "13:35:04 PST"]
[Termination "DrVitman won by resignation"]

1. d4 {[%clk 0:03:01.9]} 1... Nf6 {[%clk 0:03:00.3]} 2. Nf3 {[%clk 0:03:02.5]}
2... g6 {[%clk 0:03:01.5]} 3. Bf4 {[%clk 0:03:01.9]} 3... Bg7 {[%clk 0:03:02.7]}
4. e3 {[%clk 0:03:02.3]} 4... O-O {[%clk 0:03:02.8]} 5. h3 {[%clk 0:03:00.4]}
5... c5 {[%clk 0:03:03.9]} 6. c3 {[%clk 0:03:00.6]} 6... d6 {[%clk 0:03:05]} 7.
Nbd2 {[%clk 0:03:00]} 7... Nc6 {[%clk 0:03:06.3]} 8. Be2 {[%clk 0:03:01.1]} 8...
cxd4 {[%clk 0:03:06.2]} 9. exd4 {[%clk 0:03:01.7]} 9... Nd5 {[%clk 0:03:07.6]}
10. Bh2 {[%clk 0:03:02]} 10... e5 {[%clk 0:03:08.7]} 11. dxe5 {[%clk 0:03:02.9]}
11... dxe5 {[%clk 0:03:10.6]} 12. O-O {[%clk 0:03:03.7]} 12... Re8 {[%clk
0:03:11.3]} 13. Ne4 {[%clk 0:02:59.8]} 13... h6 {[%clk 0:03:03.4]} 14. Bc4
{[%clk 0:02:54.3]} 14... Nb6 {[%clk 0:03:00]} 15. Bb3 {[%clk 0:02:50.9]} 15...
Be6 {[%clk 0:02:47.4]} 16. Nc5 {[%clk 0:02:43.6]} 16... Bxb3 {[%clk 0:02:40.5]}
17. axb3 {[%clk 0:02:45.5]} 17... Qe7 {[%clk 0:02:37.1]} 18. b4 {[%clk
0:02:45.4]} 18... Rad8 {[%clk 0:02:32.7]} 19. Qb3 {[%clk 0:02:41.4]} 19... e4
{[%clk 0:02:32.4]} 20. Rfe1 {[%clk 0:02:33.4]} 20... exf3 {[%clk 0:02:03.9]} 21.
Rxe7 {[%clk 0:02:32.4]} 21... Rxe7 {[%clk 0:02:05.8]} 22. gxf3 {[%clk
0:02:28.6]} 22... Kh7 {[%clk 0:01:47.9]} 23. Rd1 {[%clk 0:02:13.1]} 23... Kg8
{[%clk 0:01:49.8]} 24. b5 {[%clk 0:02:00.8]} 1-0

[Event "*** Titled Tuesday Blitz"]
[Site "Chess.com"]
[Date "2018.11.06"]
[Round "3"]
[White "David_Paravyan"]
[Black "Gr3egor"]
[Result "0-1"]
[WhiteElo "2755"]
[BlackElo "2482"]
[TimeControl "180+2"]
[EndTime "13:35:13 PST"]
[Termination "Gr3egor won by resignation"]

1. e4 {[%clk 0:02:58.9]} 1... e5 {[%clk 0:02:59.1]} 2. Nf3 {[%clk 0:02:59.4]}
2... Nc6 {[%clk 0:03:00.5]} 3. Bc4 {[%clk 0:02:58.9]} 3... Bc5 {[%clk
0:03:01.3]} 4. c3 {[%clk 0:02:58.2]} 4... Nf6 {[%clk 0:03:02.4]} 5. d3 {[%clk
0:02:57.9]} 5... O-O {[%clk 0:03:03]} 6. O-O {[%clk 0:02:58]} 6... d5 {[%clk
0:03:04.4]} 7. exd5 {[%clk 0:02:58.4]} 7... Nxd5 {[%clk 0:03:06.3]} 8. h3 {[%clk
0:02:58.2]} 8... h6 {[%clk 0:03:04.7]} 9. Re1 {[%clk 0:02:58.6]} 9... Nb6 {[%clk
0:03:03]} 10. Bb5 {[%clk 0:02:58.2]} 10... Bd6 {[%clk 0:03:04.4]} 11. Bxc6
{[%clk 0:02:55.5]} 11... bxc6 {[%clk 0:03:06.3]} 12. Nxe5 {[%clk 0:02:56.9]}
12... Bb7 {[%clk 0:03:07.3]} 13. Bf4 {[%clk 0:02:54.1]} 13... c5 {[%clk
0:03:08.3]} 14. Nd2 {[%clk 0:02:53.9]} 14... Qf6 {[%clk 0:03:08.7]} 15. Bg3
{[%clk 0:02:53.4]} 15... Rfe8 {[%clk 0:03:09.4]} 16. Ng4 {[%clk 0:02:53]} 16...
Qg6 {[%clk 0:03:09.7]} 17. Ne4 {[%clk 0:02:41]} 17... f5 {[%clk 0:02:46.8]} 18.
Nxd6 {[%clk 0:02:32.2]} 18... cxd6 {[%clk 0:02:48.7]} 19. Qb3+ {[%clk
0:02:16.2]} 19... Kh7 {[%clk 0:02:49.2]} 20. Qa3 {[%clk 0:02:06.3]} 20... fxg4
{[%clk 0:02:48.9]} 21. hxg4 {[%clk 0:02:02.9]} 21... Qxd3 {[%clk 0:02:28.2]} 22.
Red1 {[%clk 0:02:00.8]} 22... Qe4 {[%clk 0:02:27.3]} 23. f3 {[%clk 0:02:02.1]}
23... Qe3+ {[%clk 0:02:17.4]} 24. Bf2 {[%clk 0:02:00.7]} 24... Qf4 {[%clk
0:02:18.6]} 25. Re1 {[%clk 0:01:55.6]} 25... Bxf3 {[%clk 0:02:09]} 26. Rxe8
{[%clk 0:01:45.6]} 26... Rxe8 {[%clk 0:02:10.9]} 27. Qxa7 {[%clk 0:01:46.8]}
27... Qxg4 {[%clk 0:02:09.3]} 0-1

[Event "*** Titled Tuesday Blitz"]
[Site "Chess.com"]
[Date "2018.11.06"]
[Round "3"]
[White "JosefineHeinemann"]
[Black "Barcelona_Guy"]
[Result "0-1"]
[WhiteElo "2346"]
[BlackElo "2477"]
[TimeControl "180+2"]
[EndTime "13:35:15 PST"]
[Termination "Barcelona_Guy won by resignation"]

1. e4 {[%clk 0:03:01.9]} 1... e5 {[%clk 0:02:58]} 2. Nf3 {[%clk 0:03:03]} 2...
d6 {[%clk 0:02:59.3]} 3. d4 {[%clk 0:03:03.4]} 3... exd4 {[%clk 0:03:01.2]} 4.
Nxd4 {[%clk 0:03:05.2]} 4... Nf6 {[%clk 0:03:02.6]} 5. Nc3 {[%clk 0:03:06.1]}
5... Be7 {[%clk 0:03:04.1]} 6. g3 {[%clk 0:03:07.2]} 6... O-O {[%clk 0:03:04.8]}
7. Bg2 {[%clk 0:03:08.5]} 7... Bg4 {[%clk 0:03:01.9]} 8. Nde2 {[%clk 0:03:02.3]}
8... Nc6 {[%clk 0:03:02.1]} 9. O-O {[%clk 0:03:03.1]} 9... Qd7 {[%clk
0:03:02.7]} 10. f3 {[%clk 0:02:57.9]} 10... Bh3 {[%clk 0:03:03.5]} 11. Be3
{[%clk 0:02:59.3]} 11... Rfe8 {[%clk 0:03:01.6]} 12. b3 {[%clk 0:02:59.8]} 12...
Bf8 {[%clk 0:02:56.4]} 13. Qd2 {[%clk 0:02:59.7]} 13... g6 {[%clk 0:02:55.7]}
14. Rad1 {[%clk 0:02:59.5]} 14... Bg7 {[%clk 0:02:53.5]} 15. a4 {[%clk 0:03:00]}
15... a6 {[%clk 0:02:52]} 16. Nf4 {[%clk 0:03:00.9]} 16... Bxg2 {[%clk
0:02:52.4]} 17. Kxg2 {[%clk 0:03:02.8]} 17... Ne5 {[%clk 0:02:46.8]} 18. Ncd5
{[%clk 0:03:01.8]} 18... Nxd5 {[%clk 0:02:47.5]} 19. Nxd5 {[%clk 0:03:03.7]}
19... Nc6 {[%clk 0:02:34.6]} 20. c4 {[%clk 0:02:58.6]} 20... Re6 {[%clk
0:02:34.3]} 21. Nf4 {[%clk 0:02:58.6]} 21... Re5 {[%clk 0:02:32.3]} 22. Qc2
{[%clk 0:02:48.8]} 22... b6 {[%clk 0:02:25.5]} 23. Rd2 {[%clk 0:02:48.4]} 23...
Rf8 {[%clk 0:02:24.2]} 24. Rfd1 {[%clk 0:02:49.1]} 24... f5 {[%clk 0:02:25.1]}
25. exf5 {[%clk 0:02:49.2]} 25... Rxe3 {[%clk 0:02:24.2]} 26. fxg6 {[%clk
0:02:47.8]} 26... h6 {[%clk 0:02:19.8]} 27. Qc1 {[%clk 0:02:36.6]} 27... Rxb3
{[%clk 0:02:16.7]} 28. Re2 {[%clk 0:02:32.6]} 28... Ne5 {[%clk 0:02:11.3]} 29.
c5 {[%clk 0:02:21.2]} 29... Qc6 {[%clk 0:02:01.9]} 30. Nd5 {[%clk 0:02:20.4]}
30... Qxc5 {[%clk 0:01:55.6]} 0-1

[Event "*** Titled Tuesday Blitz"]
[Site "Chess.com"]
[Date "2018.11.06"]
[Round "3"]
[White "Boorchess"]
[Black "Korchmar_Vasiliy"]
[Result "0-1"]
[WhiteElo "2440"]
[BlackElo "2699"]
[TimeControl "180+2"]
[EndTime "13:35:21 PST"]
[Termination "Korchmar_Vasiliy won by resignation"]

1. e4 {[%clk 0:03:01.9]} 1... c5 {[%clk 0:03:00.6]} 2. c3 {[%clk 0:03:03.5]}
2... Nf6 {[%clk 0:03:00.6]} 3. e5 {[%clk 0:03:05.2]} 3... Nd5 {[%clk 0:03:01.3]}
4. d4 {[%clk 0:03:07.1]} 4... cxd4 {[%clk 0:03:02.9]} 5. Nf3 {[%clk 0:03:09]}
5... e6 {[%clk 0:03:04.1]} 6. Bc4 {[%clk 0:03:10.9]} 6... d6 {[%clk 0:03:04]} 7.
cxd4 {[%clk 0:03:12.2]} 7... Be7 {[%clk 0:03:03.9]} 8. O-O {[%clk 0:03:13.9]}
8... O-O {[%clk 0:03:03]} 9. Qe2 {[%clk 0:03:15.8]} 9... b6 {[%clk 0:03:02.5]}
10. Nbd2 {[%clk 0:03:14.3]} 10... Bb7 {[%clk 0:02:47.2]} 11. Ne4 {[%clk
0:03:15.6]} 11... dxe5 {[%clk 0:02:45.8]} 12. dxe5 {[%clk 0:03:16.7]} 12... Nd7
{[%clk 0:02:46.3]} 13. Re1 {[%clk 0:03:13.6]} 13... Rc8 {[%clk 0:02:42.6]} 14.
a3 {[%clk 0:03:15]} 14... Qc7 {[%clk 0:02:41.3]} 15. Ba6 {[%clk 0:02:54.8]}
15... Bxa6 {[%clk 0:02:28.7]} 16. Qxa6 {[%clk 0:02:56.7]} 16... Nxe5 {[%clk
0:02:30.2]} 17. Nd4 {[%clk 0:02:43.1]} 17... Qc4 {[%clk 0:02:14.7]} 18. Qxc4
{[%clk 0:02:19.7]} 18... Rxc4 {[%clk 0:02:16.6]} 19. Nb5 {[%clk 0:02:19.7]}
19... Nd3 {[%clk 0:02:13.6]} 20. Nd2 {[%clk 0:02:08.6]} 20... Rc5 {[%clk
0:02:08.3]} 21. b4 {[%clk 0:02:09.8]} 21... Rxb5 {[%clk 0:02:04.7]} 22. Re4
{[%clk 0:02:10.2]} 22... Rc8 {[%clk 0:01:53.5]} 23. Nc4 {[%clk 0:02:10.6]} 23...
Nc3 {[%clk 0:01:36.2]} 24. Rg4 {[%clk 0:02:06.8]} 24... Nxc1 {[%clk 0:01:35.4]}
25. h4 {[%clk 0:02:03.6]} 25... N1e2+ {[%clk 0:01:36]} 26. Kh2 {[%clk
0:02:04.6]} 26... h5 {[%clk 0:01:36.9]} 27. a4 {[%clk 0:02:03.1]} 0-1

[Event "*** Titled Tuesday Blitz"]
[Site "Chess.com"]
[Date "2018.11.06"]
[Round "3"]
[White "burbur555"]
[Black "VladimirPotkin"]
[Result "1-0"]
[WhiteElo "2539"]
[BlackElo "2567"]
[TimeControl "180+2"]
[EndTime "13:35:27 PST"]
[Termination "burbur555 won by resignation"]

1. d4 {[%clk 0:03:01.9]} 1... Nf6 {[%clk 0:03:00.3]} 2. Nf3 {[%clk 0:03:02.7]}
2... d5 {[%clk 0:03:00.3]} 3. g3 {[%clk 0:03:02.6]} 3... c6 {[%clk 0:03:00.3]}
4. c4 {[%clk 0:03:02.4]} 4... g6 {[%clk 0:02:53.6]} 5. Qb3 {[%clk 0:02:58.6]}
5... Bg7 {[%clk 0:02:54.2]} 6. Bg2 {[%clk 0:02:58.3]} 6... O-O {[%clk
0:02:55.8]} 7. O-O {[%clk 0:02:58.4]} 7... Qb6 {[%clk 0:02:57.4]} 8. Nc3 {[%clk
0:02:57.2]} 8... Rd8 {[%clk 0:02:58.3]} 9. Na4 {[%clk 0:02:57]} 9... Qa6 {[%clk
0:02:44.8]} 10. cxd5 {[%clk 0:02:56.6]} 10... cxd5 {[%clk 0:02:45.3]} 11. Nc5
{[%clk 0:02:47.8]} 11... Qxe2 {[%clk 0:02:18.4]} 12. Nxb7 {[%clk 0:02:47.2]}
12... Nc6 {[%clk 0:02:14.5]} 13. Nxd8 {[%clk 0:02:43.5]} 13... Nxd8 {[%clk
0:02:15.2]} 14. Re1 {[%clk 0:02:38.4]} 14... Qa6 {[%clk 0:02:12.6]} 15. Rxe7
{[%clk 0:02:21.6]} 15... Nc6 {[%clk 0:02:13.3]} 16. Re1 {[%clk 0:02:16]} 16...
Be6 {[%clk 0:01:59.5]} 17. Be3 {[%clk 0:02:14.2]} 17... Rb8 {[%clk 0:01:54.3]}
18. Qa3 {[%clk 0:02:14.1]} 18... Qb7 {[%clk 0:01:48.8]} 19. Rec1 {[%clk
0:01:59.6]} 19... Ne4 {[%clk 0:01:43.4]} 20. Qb3 {[%clk 0:01:49.3]} 20... Qa6
{[%clk 0:01:38.4]} 21. Rxc6 {[%clk 0:01:48.4]} 1-0

[Event "*** Titled Tuesday Blitz"]
[Site "Chess.com"]
[Date "2018.11.06"]
[Round "3"]
[White "ruvat"]
[Black "nOcHeaTiNgKiD"]
[Result "0-1"]
[WhiteElo "2292"]
[BlackElo "2458"]
[TimeControl "180+2"]
[EndTime "13:35:28 PST"]
[Termination "nOcHeaTiNgKiD won by checkmate"]

1. d4 {[%clk 0:03:01.9]} 1... Nf6 {[%clk 0:03:00.4]} 2. c4 {[%clk 0:03:02.1]}
2... g6 {[%clk 0:03:01.5]} 3. Nf3 {[%clk 0:03:01.9]} 3... Bg7 {[%clk 0:03:02.5]}
4. g3 {[%clk 0:03:01.6]} 4... c5 {[%clk 0:03:03.5]} 5. Bg2 {[%clk 0:03:01.1]}
5... Qa5+ {[%clk 0:02:57.5]} 6. Bd2 {[%clk 0:02:53.8]} 6... Qb6 {[%clk
0:02:58.2]} 7. Bc3 {[%clk 0:02:52.6]} 7... O-O {[%clk 0:02:51.7]} 8. Qb3 {[%clk
0:02:42]} 8... Nc6 {[%clk 0:02:47.6]} 9. d5 {[%clk 0:02:33.9]} 9... Na5 {[%clk
0:02:30.4]} 10. Qxb6 {[%clk 0:02:27.3]} 10... axb6 {[%clk 0:02:30.2]} 11. Nbd2
{[%clk 0:02:28.7]} 11... b5 {[%clk 0:02:28.1]} 12. b3 {[%clk 0:02:08.7]} 12...
bxc4 {[%clk 0:02:27]} 13. bxc4 {[%clk 0:02:09.1]} 13... d6 {[%clk 0:02:08.9]}
14. Rb1 {[%clk 0:01:48.3]} 14... Bf5 {[%clk 0:02:07.4]} 15. Rb5 {[%clk
0:01:48.5]} 15... Nxc4 {[%clk 0:01:39.8]} 16. Nxc4 {[%clk 0:01:46]} 16... Rxa2
{[%clk 0:01:40.2]} 17. Nfd2 {[%clk 0:01:34.8]} 17... Rc2 {[%clk 0:01:31.5]} 18.
Bxf6 {[%clk 0:01:22.8]} 18... Rc1# {[%clk 0:01:30.5]} 0-1